Cogmind - Beta 16 @@@ ROGUE MODE // 2025.12.27 @ 15:28:01 Player: Peregrine Result: Destroyed 0b10! Performance ------------- Evolutions (9) 4500 Regions Visited (22) 4400 Robots Destroyed (574) 2870 Value Destroyed (28434) 28434 Prototype IDs (76) 1520 Alien Tech Used (5) 1000 Bonus (26371) 26371 TOTAL SCORE: 69095 Bonus ------- High Alert Combat Kills 7150 Follower Combat Kills 1771 Network Hubs Disabled 400 Built Enhanced Grunts 300 A7 Reached Mainframe 300 Met R17 at Cetus 500 Met R17 at Research 2000 Scanned by Researcher 500 Met Sigix 2000 Recovered Sigix Corpse 4000 Escaped with Sigix 5000 Win 3000 Friendly Fire -550 Cogmind --------- Core Integrity 876/1600 Matter 300/300 Energy 585/600 System Corruption 0% +Membrane Temperature Cool (10) Movement Walking (109) Location Tau Ceti IV Orbit Parts ------- > --- POWER (2) -------- Quantum Reactor Quantum Reactor > --- PROPULSION (8) --- Myomer Leg Myomer Leg Biometal Leg Centrium Leg Centrium Leg > --- UTILITY (13) ----- Experimental Heat Sink Huge Storage Unit Advanced Visual Processing Unit Advanced Targeting Computer Advanced Targeting Computer Advanced Target Analyzer Experimental Core Analyzer > --- WEAPON (2) ------- Compact Linear Accelerator > --- INVENTORY (25) --- Light Quantum Reactor Light Quantum Reactor Light Quantum Reactor Advanced Energy Well (500) Advanced Matter Compressor (400) Advanced Terrain Scanner Advanced Target Analyzer Centrium Medium Armor Plating Centrium Medium Armor Plating Advanced Point Defense System Subatomic Replicator Enhanced Quantum Rifle Long-range Phase Cannon Enhanced Hardcell Cannon Enhanced Hardcell Cannon Compact Linear Accelerator Scatter Rocket Array Tactical Quantum Warhead Improved Plasma Cutter Sigix Containment Pod Sigix Corpse Sigix Corpse Peak State ------------ > --- POWER ------------ Quantum Reactor Light Quantum Reactor > --- PROPULSION ------- Myomer Leg Myomer Leg Myomer Leg Biometal Leg Biometal Leg Centrium Leg Centrium Leg > --- UTILITY ---------- Experimental Heat Sink Huge Storage Unit Advanced Visual Processing Unit Advanced Targeting Computer Advanced Targeting Computer Advanced Target Analyzer Experimental Core Analyzer Advanced Remote Shield Long-range Tractor Beam Microwarp Drive > --- WEAPON ----------- Hypervelocity Multirail Compact Linear Accelerator > --- INVENTORY -------- Light Quantum Reactor Light Quantum Reactor Advanced Energy Well Advanced Matter Compressor Advanced Terrain Scanner Advanced Target Analyzer Centrium Medium Armor Plating Centrium Medium Armor Plating Advanced Point Defense System Subatomic Replicator Enhanced Quantum Rifle Long-range Phase Cannon Enhanced Hardcell Cannon Enhanced Hardcell Cannon Compact Linear Accelerator Scatter Rocket Array Tactical Quantum Warhead Improved Plasma Cutter Sigix Containment Pod Sigix Corpse Sigix Corpse [Rating: 207] Favorites ----------- Power Quantum Reactor Engine Light Angular Momentum Engine Power Core Neutrino Core Reactor Quantum Reactor Propulsion Myomer Leg Treads Heavy Treads Leg Myomer Leg Wheel Compact Wheel Hover Unit Cooled Antigrav System Flight Unit Improved Diametric Drive Utility Advanced Targeting Computer Device Advanced Heat Sink Storage High-capacity Storage Unit Processor Advanced Targeting Computer Hackware Improved Hacking Suite Protection Centrium Medium Armor Plating Artifact Microwarp Drive Weapon Flak Gun Energy Gun Cooled Phase Gun Energy Cannon Cooled Plasma Cannon Ballistic Gun Flak Gun Ballistic Cannon Hypervelocity Mass Driver Launcher Heavy Shock Bomb Launcher Special Weapon Improved Plasma Cutter Impact Weapon Impact Mace Piercing Weapon Plasma Lance Build | -11 -10 -9 -8 -7 -7 -7 -7 -6 -6 -5 -4 -4 -4 -4 -4 -3 -3 -2 -2 -2 -1 -1 ------- Run | Yrd Mat Mat Mat Fac Low Low Zio Pro Fac Fac Fac Ext Cet Arc Hub Res Qua Res Tes Sec Acc Com Slots Evolved 18 | . . 2 2 2 . . . . 2 2 2 . . . . 2 . 2 . . 2 . Power 1 | . . . . . . . . . 1 . . . . . . . . . . . . . Propulsion 6 | . . . 2 . . . . . 1 1 . . . . . 1 . 1 . . . . Utility 11 | . . 2 . 2 . . . . . 1 2 . . . . 1 . 1 . . 2 . Weapon . | . . . . . . . . . . . . . . . . . . . . . . . Parts Attached 356 | . 8 20 18 22 11 2 7 10 52 26 7 38 11 . 9 35 19 11 33 13 . 4 Power 56 | . . 2 3 2 1 1 . 1 10 3 2 5 2 . 1 4 5 3 4 5 . 2 Engine 20 | . . 2 2 2 1 1 . 1 10 1 . . . . . . . . . . . . Core 9 | . . . 1 . . . . . . 2 2 3 . . 1 . . . . . . . Reactor 27 | . . . . . . . . . . . . 2 2 . . 4 5 3 4 5 . 2 Propulsion 98 | . 2 5 7 4 6 . 1 1 19 4 . 17 . . 3 8 2 2 14 3 . . Treads 19 | . . . 5 1 . . . . . . . . . . . 6 2 2 3 . . . Leg 54 | . . . . . 5 . 1 1 11 4 . 17 . . 3 . . . 9 3 . . Wheel 23 | . 2 5 2 3 1 . . . 8 . . . . . . 2 . . . . . . Hover 1 | . . . . . . . . . . . . . . . . . . . 1 . . . Flight 1 | . . . . . . . . . . . . . . . . . . . 1 . . . Utility 123 | . 1 5 3 9 1 1 5 5 12 11 4 10 4 . 4 16 11 5 12 3 . 1 Device 53 | . . . 3 5 . . . . 4 6 4 4 . . 2 8 7 2 7 . . 1 Storage 12 | . 1 1 . 2 . . . 1 . 2 . . 1 . 1 . . 2 1 . . . Processor 35 | . . 3 . 2 1 1 5 3 5 1 . 2 . . . 6 1 . 3 2 . . Hackware 7 | . . . . . . . . . 1 2 . . . . . . 3 1 . . . . Protection 15 | . . 1 . . . . . 1 2 . . 4 3 . 1 2 . . 1 . . . Artifact 1 | . . . . . . . . . . . . . . . . . . . . 1 . . Weapon 79 | . 5 8 5 7 3 . 1 3 11 8 1 6 5 . 1 7 1 1 3 2 . 1 Energy Gun 21 | . 1 6 4 . . . . 1 2 2 . . 1 . . 2 1 . . . . 1 Energy Cannon 7 | . . 1 . . . . . . 2 2 . . . . . 1 . . . 1 . . Ballistic Gun 22 | . . 1 1 3 2 . . . 4 3 1 4 1 . 1 . . . 1 . . . Ballistic Cannon 17 | . 3 . . 1 . . 1 2 1 1 . 1 2 . . 2 . 1 1 1 . . Launcher 6 | . 1 . . 1 . . . . 2 . . 1 . . . 1 . . . . . . Special Weapon 3 | . . . . . 1 . . . . . . . 1 . . . . . 1 . . . Impact Weapon 2 | . . . . 2 . . . . . . . . . . . . . . . . . . Slashing Weapon . | . . . . . . . . . . . . . . . . . . . . . . . Piercing Weapon 1 | . . . . . . . . . . . . . . . . 1 . . . . . . Special Melee Weapon . | . . . . . . . . . . . . . . . . . . . . . . . Unidentified Prototypes 58 | . . 5 3 . . . 4 1 5 2 . . 3 . 3 8 2 1 14 6 . 1 Parts Lost 120 | . . 1 3 8 7 2 1 9 27 8 . 20 . 1 7 6 4 1 3 6 1 5 Power 19 | . . . 1 . . 1 . 1 8 2 . 2 . . . . 1 . . 3 . . Propulsion 46 | . . . 2 5 6 . . 4 7 4 . 6 . 1 4 2 2 . . . 1 2 Utility 30 | . . . . 2 1 . 1 1 3 2 . 7 . . 3 1 1 . 3 3 . 2 Weapon 25 | . . 1 . 1 . 1 . 3 9 . . 5 . . . 3 . 1 . . . 1 Highest Loss Streak 13 | . . 1 2 4 4 2 1 2 13 6 . 7 . 1 3 2 3 1 2 3 1 3 To Critical Strikes 4 | . . . . . . . . . 2 . . 1 . . . 1 . . . . . . Average Backups 18 | 6 7 15 18 18 15 15 17 18 16 17 19 18 23 25 22 21 22 17 19 19 18 18 Power 1 | 1 1 1 1 1 2 2 2 1 . . . 2 2 3 2 . 1 . 1 1 2 2 Propulsion 1 | 4 3 6 4 1 1 1 . . . . . 1 3 4 1 1 . . . 2 . . Utility 8 | . . 2 7 7 7 8 11 13 12 9 8 6 7 8 8 9 11 9 9 7 7 7 Weapon 6 | 1 2 3 5 7 5 3 3 3 2 7 10 8 9 9 8 9 7 5 6 5 7 7 Tool/Special . | . . . . . . . . . . . . . . . . . . . . . . . Unused Backups 62 | . 8 9 3 4 . . 1 . 3 5 1 2 3 . 4 2 4 1 6 1 . 5 Power 9 | . 1 2 1 . . . . . . . . . 1 . 1 . 1 . 2 . . . Propulsion 13 | . 4 6 . . . . . . . . . 1 . . 2 . . . . . . . Utility 23 | . 1 . 1 3 . . . . 3 3 1 . 1 . 1 2 3 1 1 1 . 1 Weapon 16 | . 2 1 1 1 . . 1 . . 2 . 1 1 . . . . . 3 . . 3 Tool/Special 1 | . . . . . . . . . . . . . . . . . . . . . . 1 Average Slot Usage (%) 87 | . 85 88 98 90 88 82 97 78 88 95 93 92 99 95 90 80 81 79 85 89 80 79 Engine 3 | . 14 11 7 7 7 5 7 6 11 4 2 . . . . . . . . . . . Core 1 | . . . 1 . . . . . . 4 7 8 1 . . 2 . . . . . . Reactor 3 | . . . . . . . . . . . . 1 8 10 5 6 8 7 7 7 8 8 Treads 7 | . . . 31 15 . . . . . . . . . . . 15 16 16 15 4 . . Leg 12 | . 12 . . . 19 15 21 10 15 31 25 27 31 27 29 1 . . 6 22 28 28 Wheel 3 | . 15 21 3 8 . . 5 . 9 . . . . . . . . . . . . . Device 11 | . . . 8 20 7 2 3 . 3 15 25 17 15 15 14 18 14 12 16 12 8 7 Storage 5 | . 14 11 9 7 7 7 7 7 6 5 5 5 5 5 5 4 4 4 4 4 4 4 Processor 20 | . . 20 18 15 29 35 34 33 26 13 10 16 15 15 14 14 19 17 19 23 20 20 Hackware 1 | . . . . . . . . . 1 3 . . . . . . 7 7 4 . . . Protection 1 | . . 2 . . . . . 2 . . 4 3 9 10 8 6 . 3 . 2 . . Energy Gun 3 | . 2 13 17 3 . 4 3 . 1 4 . . 4 5 1 . 2 4 4 1 . . Ballistic Gun 4 | . . . . 8 14 9 7 5 1 3 6 9 1 . 3 . 2 . 3 3 2 3 Ballistic Cannon 2 | . 24 6 . 1 . . 3 7 2 . . . 1 5 4 5 3 3 . . . 3 Peak Build Rating 207 | 6 7 26 37 47 48 42 58 57 75 91 101 124 144 144 144 146 146 158 190 204 204 207 Average Rating 97 | 6 6 19 34 40 43 40 51 52 65 83 97 108 140 138 128 134 135 149 170 179 195 195 On Entrance 89 | 6 6 6 26 36 39 42 42 57 53 64 88 101 120 144 137 110 141 126 150 182 204 189 Avg Prop Armor Cover (%) 11 | . . . 6 14 . . 18 18 6 . . . . . . 4 . . 7 8 . . Naked Turns . | . . . . . . . . . . . . . . . . . . . . . . . Heaviest Build 167 | 14 51 57 57 70 65 59 63 73 106 111 92 115 167 157 157 159 129 147 146 149 141 141 Greatest Support 310 | 20 32 32 88 84 60 30 30 47 83 106 91 145 145 145 151 245 245 266 310 222 219 191 Greatest Overweight (x) 17 | . 1 2 2 5 3 1 3 17 8 1 1 2 1 1 1 2 1 . 1 . . . Average Overweight (x) . | . . 1 . . . 1 2 2 1 . . . . 1 . . . . . . . . Largest Inventory Capacity 25 | 8 20 20 20 25 25 20 20 20 25 25 20 20 25 25 25 25 25 25 25 25 25 25 Average Capacity 22 | 8 14 20 20 20 20 20 20 20 20 21 20 20 24 25 25 25 25 25 25 25 25 25 Most Carried 25 | 6 9 20 20 20 19 16 20 20 20 21 20 20 25 25 25 25 25 25 25 25 22 24 Average Carried 19 | 6 7 15 18 18 15 15 17 18 16 17 19 18 23 25 22 22 24 21 24 23 22 22 Final Capacity 25 | 8 20 20 20 20 20 20 20 20 20 20 20 20 25 25 25 25 25 25 25 25 25 25 Final Carried 25 | 6 8 19 20 15 16 15 19 18 14 20 20 20 25 25 20 25 23 25 25 22 22 23 Class Distribution -------------------- 49% | Scavenger-Mutant 43% | Mutant Dominant Class ---------------- Mutant | -10/Materials Mutant | -9/Materials Mutant | -8/Materials Mutant | -7/Factory Mutant | -7/Lower Caves Mutant | -7/Lower Caves Mutant | -7/Zion Mutant | -6/Proximity Caves Mutant | -6/Factory Scavenger-Mutant | -5/Factory Assassin | -4/Factory Scavenger-Mutant | -4/Extension Scavenger-Mutant | -4/Cetus Scavenger-Mutant | -4/Archives Scavenger-Mutant | -4/Hub_04(d) Scavenger-Mutant | -3/Research Scavenger-Mutant | -3/Quarantine Scavenger-Mutant | -2/Research Scavenger-Mutant | -2/Testing Scavenger-Mutant | -2/Section 7 Scavenger-Mutant | -1/Access Scavenger-Mutant | -1/Command Resources | -11 -10 -9 -8 -7 -7 -7 -7 -6 -6 -5 -4 -4 -4 -4 -4 -3 -3 -2 -2 -2 -1 -1 ----------- Run | Yrd Mat Mat Mat Fac Low Low Zio Pro Fac Fac Fac Ext Cet Arc Hub Res Qua Res Tes Sec Acc Com Matter Collected 15583 | 200 300 650 235 1183 552 60 120 713 1298 589 . 1949 456 64 606 1586 1209 788 1208 1166 102 549 Remotely 2994 | . . . . 196 148 . . . . . . . . . . 168 283 . 446 1150 102 501 Salvage Created 29312 | . 357 1344 1561 1410 653 105 . 566 1758 972 . 2547 538 36 1422 2170 3173 997 4105 3805 562 1231 Parts 1322 | . 25 70 54 91 35 6 . 13 98 49 . 110 31 4 57 82 161 48 169 148 15 56 Haulers Intercepted 21 | . 2 2 2 3 . . . . 1 . . . . . 1 2 1 1 3 2 1 . Recyclers Shooed 11 | . . 1 1 2 . . . . 2 . . 1 . . 2 1 . . 1 . . . Parts Field Recycled . | . . . . . . . . . . . . . . . . . . . . . . . Retrieved Matter . | . . . . . . . . . . . . . . . . . . . . . . . Parts Self-Destructed 45 | . . . . . 25 9 . 11 . . . . . . . . . . . . . . Prevented . | . . . . . . . . . . . . . . . . . . . . . . . Parts Restored . | . . . . . . . . . . . . . . . . . . . . . . . Kills | -11 -10 -9 -8 -7 -7 -7 -7 -6 -6 -5 -4 -4 -4 -4 -4 -3 -3 -2 -2 -2 -1 -1 ------- Run | Yrd Mat Mat Mat Fac Low Low Zio Pro Fac Fac Fac Ext Cet Arc Hub Res Qua Res Tes Sec Acc Com Combat Hostiles Destroyed 416 | . 10 25 24 30 16 4 . 20 33 16 . 23 9 . 10 36 42 17 38 41 4 18 Melee 1 | . . . . . . . . . . . . . . . . . . . 1 . . . Guns 238 | . . 11 23 15 16 4 . 4 7 8 . 21 2 . 1 . 30 6 37 32 4 17 Cannons 129 | . 4 10 . 7 . . . 7 11 8 . . 7 . 8 35 12 11 . 8 . 1 AOE 38 | . 6 4 . 7 . . . 8 12 . . . . . . 1 . . . . . . Classes Destroyed 22 | . 7 4 1 2 . . . 2 2 . . 1 . . . 1 . . 2 . . . Worker 38 | . 1 2 4 11 . . . . 3 . . . . . 5 1 1 . 6 2 . 2 Builder 22 | . 2 1 1 4 . . . . 5 1 . 2 . . 2 1 2 . 1 . . . Tunneler 1 | . . . . . . . . . 1 . . . . . . . . . . . . . Hauler 21 | . 2 2 2 3 . . . . 1 . . . . . 1 2 1 1 3 2 1 . Recycler 25 | . 1 4 1 4 . . . . 1 1 . 2 . . 3 . . 1 4 1 1 1 Mechanic 5 | . . . . . . . . . 1 . . . . . 1 . 3 . . . . . Operator 13 | . 1 . . 1 . . . . . 1 . 1 . 1 . 1 3 . 2 . 1 1 Drone 1 | . . . . . . . . 1 . . . . . . . . . . . . . . Watcher 24 | . . 5 2 . . . . . 2 . . 3 . . 2 . 3 1 3 2 . 1 Swarmer 80 | . 6 4 3 6 3 4 . 1 7 . . . 2 . . 11 9 10 . 5 . 9 Saboteur 1 | . . . . . . . . . . . . . . . . . . . 1 . . . Grunt 144 | . 4 15 14 14 6 . . 6 13 6 . 11 2 . 4 7 12 . 5 18 2 5 Brawler 19 | . . 1 . 2 1 . . 2 1 . . . . . 1 . 3 . 5 3 . . Duelist 14 | . . 1 . 1 1 . . 6 . . . . . . . 1 2 . 1 1 . . Protector 4 | . . . . 2 . . . . . . . . . . . . . . 1 1 . . Researcher 7 | . . . . . . . . . . . . . . . . . . . 2 5 . . Sentry 37 | . . 4 5 1 . . . 2 4 3 . 5 . . 2 2 . 3 1 3 . 2 Demolisher 2 | . . . . . . . . . . . . 1 . . . 1 . . . . . . Hunter 37 | . . . 2 1 . . . 1 4 . . 2 . . 1 6 4 2 8 4 2 . Programmer 52 | . . . . 3 . . . . 3 7 . . . . 2 2 12 2 16 3 . 2 Behemoth 6 | . . . . . . . . 1 1 . . 2 . . . 1 . . . 1 . . Cetus Guard 5 | . . . . . . . . . . . . . 5 . . . . . . . . . S7 Guard 2 | . . . . . . . . . . . . . . . . . . . . 2 . . Striker 5 | . . . . . . . . . . . . . . . . 5 . . . . . . Thug 3 | . . . . . 1 . . . . . . 2 . . . . . . . . . . Butcher 5 | . . . . . 4 . . . . . . 1 . . . . . . . . . . Guerrilla 1 | . . . . . . . . . . . . 1 . . . . . . . . . . Best Kill Streak 30 | . 10 6 10 30 5 4 . 7 9 6 . 4 3 1 18 9 8 6 7 11 7 7 Combat Bots Only 9 | . 5 4 3 9 5 4 . 7 9 6 . 4 3 . 6 9 6 4 5 9 4 6 Max Kills in Single Turn 9 | . 3 3 2 4 2 1 . 3 5 1 . 3 2 1 9 2 3 2 2 3 1 2 Gunslinging 1 | . . . . . . . . . . . . . . . . . 1 . . 1 . . Exploded 3 | . 3 2 . 2 . . . 3 3 . . . . . . 1 . . . . . . Melee 1 | . . . . . . . . . . . . . . . . . . . 1 . . . Uniques/NPCs Destroyed . | . . . . . . . . . . . . . . . . . . . . . . . Combat | -11 -10 -9 -8 -7 -7 -7 -7 -6 -6 -5 -4 -4 -4 -4 -4 -3 -3 -2 -2 -2 -1 -1 -------- Run | Yrd Mat Mat Mat Fac Low Low Zio Pro Fac Fac Fac Ext Cet Arc Hub Res Qua Res Tes Sec Acc Com Hostile Shots Fired 2490 | . 45 54 110 164 73 20 . 130 386 146 9 237 60 6 135 175 176 58 125 278 20 83 Missed 845 | . 17 19 28 60 21 11 . 48 131 38 1 74 19 1 47 63 51 20 66 97 6 27 Hits 1645 | . 28 35 82 104 52 9 . 82 255 108 8 163 41 5 88 112 125 38 59 181 14 56 Melee 32 | . . 1 . 3 13 . . 2 . . . . . . 4 . 5 . 1 3 . . Projectile 1613 | . 28 34 82 101 39 9 . 80 255 108 8 163 41 5 84 112 120 38 58 178 14 56 AOE 3 | . . . . . . . . . . 1 . . . . . 2 . . . . . . Critical Strikes 72 | . . 1 4 6 4 . . 1 7 6 . 11 3 . 6 3 9 2 3 3 1 2 Part Disruptions 2 | . . . . . . . . . . . . . . . . . 2 . . . . . Damage Taken 33354 | . 249 608 1184 1750 1106 132 . 1314 4519 2107 160 3448 500 153 2414 2773 2723 867 1245 4101 658 1343 Core 4050 | . 78 143 240 224 65 14 . 247 702 282 . 210 23 . 229 139 154 20 89 467 445 279 Absorbed by Shields 1300 | . . . . . . . . . . . . 354 450 14 50 . . . 16 416 . . Reduced by Siege Mode 87 | . . . . . . . . . . . . . . . . 7 . . . 80 . . Redirected to Shielding 1 | . . 1 . . . . . . . . . . . . . . . . . . . . Ignored by Resistances 723 | . . . . . . . . . 8 . . . . . . 85 244 . . 386 . . Regen/Repaired (Parts) 6117 | . . 84 147 111 . . . . 612 91 129 . . . . . 1657 . 411 2875 . . Core Remaining (%) 55 | 100 68 64 56 . . . . 21 17 71 . . . . 59 . 77 . . 26 . 54 Volleys Fired 1297 | . 33 64 87 87 41 5 . 56 103 49 . 138 26 8 46 94 115 34 107 119 31 54 Largest 2 | . 2 2 2 2 2 2 . 2 2 2 . 2 2 2 2 2 2 2 2 2 1 2 Hottest 198 | . 60 90 131 122 56 89 . 108 127 198 . 70 136 136 136 184 134 136 128 163 105 108 Shots Fired 2314 | . 52 115 171 167 81 10 . 106 162 96 . 265 43 13 90 175 208 68 167 223 31 71 Gun 1465 | . 4 54 167 113 81 10 . 29 70 47 . 263 19 5 44 5 165 34 167 139 20 29 Cannon 813 | . 44 61 4 44 . . . 70 89 49 . 1 24 8 41 164 43 34 . 84 11 42 Launcher 36 | . 4 . . 10 . . . 7 3 . . 1 . . 5 6 . . . . . . Special . | . . . . . . . . . . . . . . . . . . . . . . . Kinetic 1525 | . 44 61 . 147 81 6 . 98 65 31 . 264 35 8 79 147 109 34 107 120 20 69 Thermal 663 | . . . 152 10 . 4 . 1 81 65 . . 8 5 6 22 99 34 60 103 11 2 Explosive 24 | . 4 . . 10 . . . 7 3 . . . . . . . . . . . . . Electromagnetic 102 | . 4 54 19 . . . . . 13 . . 1 . . 5 6 . . . . . . Robot Hit Streak 40 | . 9 29 30 21 17 4 . 21 21 15 . 22 6 2 6 17 29 13 30 40 8 8 Robot Miss Streak 10 | . 4 3 2 4 9 9 . 8 4 7 . 10 3 2 6 3 2 3 10 3 4 8 Penetration Max 3 | . . . . 1 1 . . . 1 1 . 3 2 . 2 2 2 . 2 1 1 1 Secondary Targets 26 | . . 1 3 3 3 . . . . . . 6 . . . . 7 . 1 2 . . Max Gunslinging Chain 1 | . . 1 1 1 1 . . . . . . 1 . . . . 1 . 1 1 . . Shots Hit Robots 1627 | . 21 96 141 124 70 7 . 86 133 72 . 155 27 6 42 114 148 41 129 167 18 30 Core Hits 1133 | . 20 60 58 93 78 10 . 62 90 82 . 86 15 3 34 55 82 23 104 129 15 34 Critical Kills 221 | . . . . 2 . . . 1 2 1 . 28 7 1 11 34 23 . 49 35 7 20 Critical Parts Destroyed 256 | . . . . . 2 . . 9 8 . . 38 10 4 9 37 12 1 63 34 11 18 Critical Strikes 587 | . 1 . 15 10 2 . . 13 16 1 . 83 20 5 23 82 42 8 122 87 18 39 Burn 29 | . . . 15 3 . . . . 1 . . . . . . . 6 1 2 1 . . Meltdown 1 | . . . . . . . . . . . . . . . . . . . . 1 . . Destroy 530 | . . . . 2 2 . . 12 7 1 . 81 20 5 23 82 35 1 120 83 18 38 Blast 20 | . 1 . . 5 . . . 1 4 . . . . . . . . 6 . 2 . 1 Smash 6 | . . . . . . . . . 4 . . 2 . . . . . . . . . . Impale 1 | . . . . . . . . . . . . . . . . . 1 . . . . . Melee Attacks 47 | . . . . 3 . . . . 16 7 5 11 . . . . 5 . . . . . Impact 42 | . . . . 3 . . . . 16 7 5 11 . . . . . . . . . . Slashing . | . . . . . . . . . . . . . . . . . . . . . . . Piercing 5 | . . . . . . . . . . . . . . . . . 5 . . . . . Sneak Attacks 3 | . . . . . . . . . 2 . . . . . . . 1 . . . . . Combat Hostiles . | . . . . . . . . . . . . . . . . . . . . . . . Follow-up Attacks . | . . . . . . . . . . . . . . . . . . . . . . . Damage Inflicted 49171 | . 748 2259 2914 5033 1446 111 . 2533 6002 2324 . 1710 603 190 2840 2672 6306 2149 3732 4752 169 678 Guns 25809 | . . 804 2765 1978 1446 111 . 414 1163 1226 . 1554 167 80 624 96 5679 1181 3481 2510 169 361 Cannons 13917 | . 370 887 81 1049 . . . 1234 2141 1033 . . 436 110 379 2308 553 968 . 2051 . 317 Explosions 8463 | . 378 568 60 1994 . . . 885 2100 . . . . . 1819 254 . . 234 171 . . Melee 828 | . . . . . . . . . 598 . . 156 . . . . 74 . . . . . Ramming 154 | . . . 8 12 . . . . . 65 . . . . 18 14 . . 17 20 . . Kinetic 21095 | . 370 887 . 2827 1446 71 . 1637 1014 684 . 1554 532 110 967 1925 2193 968 1267 1796 169 678 Thermal 18776 | . . 215 2549 200 . 40 . 11 3127 1575 . . 71 80 230 479 4039 1181 2214 2765 . . Explosive 4916 | . 378 353 . 1994 . . . 885 901 . . . . . . . . . 234 171 . . Electromagnetic 3402 | . . 804 357 . . . . . 362 . . . . . 1625 254 . . . . . . Impact 754 | . . . . . . . . . 598 . . 156 . . . . . . . . . . Slashing . | . . . . . . . . . . . . . . . . . . . . . . . Piercing 74 | . . . . . . . . . . . . . . . . . 74 . . . . . Highest Corruption 10 | . 2 . . 3 . . . . 1 6 . 1 1 1 8 . 9 1 5 10 . . Average Corruption 2 | . 2 . . 2 . . . . 1 4 . 1 1 1 1 . 3 1 1 7 . . Corruption Purged 13 | . . . . 3 . . . . . 6 . . . . . . 4 . . . . . Corruption Blocked . | . . . . . . . . . . . . . . . . . . . . . . . Effects 154 | . 1 . . 8 . . . . 4 19 . 16 9 2 5 . 37 . 14 39 . . Message Errors 36 | . . . . 2 . . . . 1 3 . 5 3 1 . . 12 . 2 7 . . Matter Fused 39 | . . . . 3 . . . . 1 6 . 4 4 1 . . 7 . 5 8 . . Heat Flow Errors 12 | . . . . . . . . . 2 2 . 1 1 . 2 . 1 . 2 1 . . Energy Discharges 18 | . . . . . . . . . . 3 . 3 . . 3 . 1 . 1 7 . . Parts Rejected 1 | . . . . . . . . . . . . . . . . . . . . 1 . . Parts Fused 2 | . . . . . . . . . . 1 . . . . . . 1 . . . . . Data Loss (minor) 20 | . . . . . . . . . . 2 . . 1 . . . 8 . 2 7 . . Data Loss (major) 5 | . . . . . . . . . . 1 . . . . . . 3 . . 1 . . Misfires 7 | . 1 . . 2 . . . . . . . 1 . . . . 2 . 1 . . . Alerts 6 | . . . . 1 . . . . . . . 2 . . . . . . 1 2 . . Misdirections 1 | . . . . . . . . . . . . . . . . . . . . 1 . . Weapon Failures 7 | . . . . . . . . . . 1 . . . . . . 2 . . 4 . . Overload Shots 223 | . . . . . . . . . . 4 . . . . . . 83 34 60 42 . . Effects 12 | . . . . . . . . . . . . . . . . . 5 2 3 2 . . Energy Bleed 6 | . . . . . . . . . . . . . . . . . 2 1 1 2 . . Heat Surge 5 | . . . . . . . . . . . . . . . . . 2 1 2 . . . Short Circuit 1 | . . . . . . . . . . . . . . . . . 1 . . . . . Overflow Damage 1195 | . 14 77 6 59 . . . 29 701 1 . 91 . . 35 21 110 34 . . . 17 Projectiles 253 | . 14 1 6 20 . . . 27 111 . . . . . . 21 2 34 . . . 17 Explosions 437 | . . 76 . 39 . . . 2 285 . . . . . 35 . . . . . . . Melee 505 | . . . . . . . . . 305 1 . 91 . . . . 108 . . . . . Knockbacks 76 | . 3 5 . 4 . . . 14 5 13 . 1 . 2 6 7 6 3 . 4 . 3 Impact 7 | . . . . . . . . . 4 2 . 1 . . . . . . . . . . Kinetic 65 | . 3 5 . 4 . . . 12 1 10 . . . 2 6 7 6 3 . 3 . 3 Secondary 4 | . . . . . . . . 2 . 1 . . . . . . . . . 1 . . Self-Inflicted Damage 1138 | . . 119 14 91 . . . . 462 . . . . . 332 24 . . . 96 . . Shots 23 | . . 3 1 4 . . . . 7 . . . . . 6 1 . . . 1 . . Rammed 5 | . . . 3 1 . . . . . . . . . . . . . . 1 . . . Targets Rammed 14 | . . . 3 2 . . . . . 5 . . . . 1 1 . . 1 1 . . Kicked 7 | . . . . . . . . . . 5 . . . . 1 . . . . 1 . . Crushed 2 | . . . . 1 . . . . . . . . . . . 1 . . . . . . Highest Temperature 415 | . 12 132 213 135 27 . . 199 342 148 . 415 327 234 354 116 151 280 246 160 . . Average Temperature 82 | . 5 31 62 70 12 . . 69 88 39 . 115 113 110 137 31 55 98 81 102 . . Received Heat Transfer 5453 | . 72 183 504 429 288 . . 420 928 477 21 845 14 45 301 87 268 9 54 499 . 9 Effects 10 | . . . . . . . . . 1 . . 4 3 . 1 . . 1 . . . . Energy Bleed 5 | . . . . . . . . . 1 . . 3 . . . . . 1 . . . . Interference 3 | . . . . . . . . . . . . . 3 . . . . . . . . . Short Circuit 2 | . . . . . . . . . . . . 1 . . 1 . . . . . . . Siege Activations 3 | . . . . . . . . . . . . . . . . 2 . . . 1 . . Total Turns 53 | . . . . . . . . . . . . . . . . 16 . . . 37 . . Longest Duration 37 | . . . . . . . . . . . . . . . . 10 . . . 37 . . Martial Activations . | . . . . . . . . . . . . . . . . . . . . . . . Shielding Activations . | . . . . . . . . . . . . . . . . . . . . . . . Robots Disrupted . | . . . . . . . . . . . . . . . . . . . . . . . Combat Hostiles . | . . . . . . . . . . . . . . . . . . . . . . . Robots Corrupted 8 | . . . . . . . . 1 3 . . 2 . . 2 . . . . . . . Combat Hostiles 7 | . . . . . . . . 1 3 . . 2 . . 1 . . . . . . . Parts Fried 26 | . . 1 2 . . . . 1 8 . . 5 . . 9 . . . . . . . Impact Corruptions 9 | . . . . . . . . 1 5 1 . 2 . . . . . . . . . . Robots Melted 3 | . . . 1 1 . . . . . . . . . . . . . . . 1 . . Combat Hostiles 3 | . . . 1 1 . . . . . . . . . . . . . . . 1 . . Parts Melted 45 | . . . 16 4 . 1 . . 5 6 . . . . . . 4 1 3 5 . . Heat Transferred 23944 | . . 250 5798 592 . 74 . 25 4325 2206 . . 111 111 137 111 4059 1200 2050 2895 . . Parts Sabotaged 6 | . . . . . . . . 4 . . . . . . . . . . 2 . . . Parts Stolen . | . . . . . . . . . . . . . . . . . . . . . . . Parts Stripped . | . . . . . . . . . . . . . . . . . . . . . . . Power Chain Reactions 7 | . . 3 1 . . . . . 1 . . . . . 1 1 . . . . . . Alert | -11 -10 -9 -8 -7 -7 -7 -7 -6 -6 -5 -4 -4 -4 -4 -4 -3 -3 -2 -2 -2 -1 -1 ------- Run | Yrd Mat Mat Mat Fac Low Low Zio Pro Fac Fac Fac Ext Cet Arc Hub Res Qua Res Tes Sec Acc Com Maximum Alert Level 5 | . 1 1 2 3 . . . . 3 2 . 2 3 2 5 4 3 2 4 4 3 3 Low Security (%) 20 | 100 99 64 17 59 . . . . . . 100 69 4 . 20 . . . 5 . . . Level 1 16 | . . 35 39 6 . . . . . 34 . 15 70 14 10 . 7 64 20 . . . Level 2 31 | . . . 43 4 . . . . 38 65 . 14 18 85 42 52 55 35 28 12 . 8 Level 3 28 | . . . . 29 . . . . 61 . . . 6 . 14 43 36 . 44 36 100 91 Level 4 2 | . . . . . . . . . . . . . . . 3 3 . . . 50 . . Level 5 . | . . . . . . . . . . . . . . . 8 . . . . . . . High Security . | . . . . . . . . . . . . . . . . . . . . . . . Max Security . | . . . . . . . . . . . . . . . . . . . . . . . Peak Influence 1646 | . 202 379 527 786 . . . . 927 490 169 509 834 486 1646 1274 1051 611 1101 1578 1016 1098 Initial 936 | . . 17 147 218 . . . . 909 445 169 8 283 326 152 843 716 384 334 618 936 622 Average 522 | . 97 167 340 317 . . . . 725 416 58 142 361 444 581 737 679 399 629 1094 979 891 Influence Increases 18069 | . 315 829 756 1175 250 90 . 415 2242 523 37 1270 971 200 1824 1123 1423 547 1603 1568 177 731 Destroy 0b10 Robot/C 9020 | . 200 500 480 560 220 80 . 380 660 320 . 720 440 80 360 720 840 340 780 900 80 360 Destroy 0b10 Robot/NC 800 | . 35 70 50 125 . . . 5 70 15 . 45 10 5 80 25 65 15 105 40 15 25 Destroy Leader 1716 | . 44 134 128 124 30 10 . 30 184 100 . 76 40 . 90 144 138 72 150 148 12 62 Allied During Kill 998 | . . . . . . . . . . . . 255 403 85 255 . . . . . . . Successful Hack 374 | . 14 33 17 27 . . . . 26 11 12 28 1 . . 2 132 12 4 48 7 . Disable Machine 1305 | . 15 60 45 90 . . . . 180 15 . 45 15 30 300 15 120 . 180 135 45 15 Anti-Garrison Action 500 | . . . . 150 . . . . . . . . . . 150 150 . . . . . 50 Destroy Structure 1841 | . 7 17 6 39 . . . . 132 32 10 26 62 . 544 22 38 63 369 237 18 219 Advance Influence 900 | . . . . . . . . . 900 . . . . . . . . . . . . . Partial Spotted 15 | . . . . . . . . . . . 15 . . . . . . . . . . . Lose Combat Pursuer 600 | . . 15 30 60 . . . . 90 30 . 75 . . 45 45 90 45 15 60 . . Influence Decreases 17020 | . 273 521 625 915 719 362 . 399 1347 1088 365 782 661 580 652 1457 2014 635 1099 1107 764 655 Entered New Map 5815 | . . 25 203 263 275 53 . . 7 466 177 10 223 490 284 765 558 299 261 481 624 351 Time Decay 8112 | . 137 486 392 581 374 289 . 319 610 542 188 436 398 80 198 632 666 326 658 416 130 254 Search Patrol Dispatched 300 | . . . . . . . . . 300 . . . . . . . . . . . . . Lost Part 1132 | . . 10 30 71 70 20 . 80 270 80 . 161 . 10 70 60 40 10 30 60 10 50 Lost Ally 325 | . . . . . . . . . 10 . . 175 40 . 100 . . . . . . . Purge Threat 1336 | . 136 . . . . . . . 150 . . . . . . . 750 . 150 150 . . Squads Dispatched 105 | . 1 3 5 14 . . . 1 11 6 2 5 2 . 6 9 12 2 12 9 1 4 Investigation 28 | . . 3 3 3 . . . . 1 2 1 2 2 . . 6 2 . 2 . 1 . Extermination 24 | . . . . 3 . . . . 3 2 1 . . . 1 . 6 1 5 1 . 1 Reinforcement 25 | . 1 . 2 3 . . . . 1 2 . 2 . . 3 3 1 1 . 5 . 1 Assault 17 | . . . . 2 . . . 1 1 . . 1 . . 2 . 3 . 2 3 . 2 Garrison 11 | . . . . 3 . . . . 5 . . . . . . . . . 3 . . . Intercept . | . . . . . . . . . . . . . . . . . . . . . . . Searches Triggered 3 | . . . . . . . . . 3 . . . . . . . . . . . . . Construction Impeded 7 | . . . 1 1 . . . . 1 . . 1 . . 1 . . 1 . 1 . . Haulers Reinforced 2 | . . . . 1 . . . . . . . . . . 1 . . . . . . . Active Scanning Responses . | . . . . . . . . . . . . . . . . . . . . . . . Cargo Convoy Interrupts 1 | . . . . . . . . . . 1 . . . . . . . . . . . . Stealth | -11 -10 -9 -8 -7 -7 -7 -7 -6 -6 -5 -4 -4 -4 -4 -4 -3 -3 -2 -2 -2 -1 -1 --------- Run | Yrd Mat Mat Mat Fac Low Low Zio Pro Fac Fac Fac Ext Cet Arc Hub Res Qua Res Tes Sec Acc Com Distress Signals 25 | . . . 3 1 . . . 1 . . . 2 2 . 2 7 1 . . 5 1 . Communications Jammed . | . . . . . . . . . . . . . . . . . . . . . . . Distress Signals . | . . . . . . . . . . . . . . . . . . . . . . . Times Spotted 618 | . 12 30 35 41 16 4 . 24 51 27 4 41 23 7 30 56 55 20 44 61 6 31 Peak Tracking Total 11 | . 5 3 6 6 4 4 . 5 9 5 4 6 5 2 10 6 5 4 6 9 3 11 Tactical Retreats 29 | . . 1 2 4 . . . . 4 1 . 3 . . 2 3 5 2 1 1 . . Traps | -11 -10 -9 -8 -7 -7 -7 -7 -6 -6 -5 -4 -4 -4 -4 -4 -3 -3 -2 -2 -2 -1 -1 ------- Run | Yrd Mat Mat Mat Fac Low Low Zio Pro Fac Fac Fac Ext Cet Arc Hub Res Qua Res Tes Sec Acc Com Traps Triggered 32 | . 1 2 3 5 . . . . 1 1 . 2 . . 1 11 1 1 3 . . . Indirectly 6 | . . . . . . . . . . . . . . . . 6 . . . . . . Trap Hack Attempts . | . . . . . . . . . . . . . . . . . . . . . . . Triggered . | . . . . . . . . . . . . . . . . . . . . . . . Disarmed . | . . . . . . . . . . . . . . . . . . . . . . . Reprogrammed . | . . . . . . . . . . . . . . . . . . . . . . . Reused . | . . . . . . . . . . . . . . . . . . . . . . . Traps Extracted . | . . . . . . . . . . . . . . . . . . . . . . . Installed . | . . . . . . . . . . . . . . . . . . . . . . . Triggered . | . . . . . . . . . . . . . . . . . . . . . . . Machines | -11 -10 -9 -8 -7 -7 -7 -7 -6 -6 -5 -4 -4 -4 -4 -4 -3 -3 -2 -2 -2 -1 -1 ---------- Run | Yrd Mat Mat Mat Fac Low Low Zio Pro Fac Fac Fac Ext Cet Arc Hub Res Qua Res Tes Sec Acc Com Machines Disabled 95 | . 1 4 3 7 . . . 2 12 1 . 3 1 2 21 2 8 . 13 9 3 3 Max in Single Turn 12 | . 1 3 1 2 . . . 2 5 1 . 1 1 1 12 1 1 . 2 1 1 2 Garrison Access 4 | . . . . 1 . . . . . . . . . . 1 1 1 . . . . . Phase Generator 1 | . . . . . . . . . . . . . . . . . . . . . . 1 Network Hub 2 | . . . . . . . . . . . . . . . 2 . . . . . . . Machines Repaired . | . . . . . . . . . . . . . . . . . . . . . . . Machines Dismantled 4 | . . . . . . . . . . . . . 1 . . . 1 . . . 2 . Machines Sabotaged . | . . . . . . . . . . . . . . . . . . . . . . . Overloaded Fab Kills . | . . . . . . . . . . . . . . . . . . . . . . . Hacking | -11 -10 -9 -8 -7 -7 -7 -7 -6 -6 -5 -4 -4 -4 -4 -4 -3 -3 -2 -2 -2 -1 -1 --------- Run | Yrd Mat Mat Mat Fac Low Low Zio Pro Fac Fac Fac Ext Cet Arc Hub Res Qua Res Tes Sec Acc Com Machines Accessed 90 | . 2 11 4 8 1 . . . 7 7 8 8 2 1 3 4 14 1 4 2 2 1 Terminals 54 | . 2 8 3 4 . . . . 1 4 6 8 2 . 2 . 8 1 2 1 2 . Fabricators 5 | . . . . . . . . . 1 1 1 . . . . 1 . . 1 . . . Repair Stations 13 | . . 1 1 2 . . . . 2 1 1 . . . . 1 2 . 1 . . 1 Recycling Units 2 | . . . . . . . . . 2 . . . . . . . . . . . . . Scanalyzers 11 | . . 2 . 1 . . . . 1 1 . . . . . 2 3 . . 1 . . Garrison Access 3 | . . . . 1 . . . . . . . . . . 1 . 1 . . . . . Total Hacks 324 | . 9 42 7 23 1 . . . 22 32 17 18 6 13 5 17 78 4 20 5 4 1 Successful 166 | . 7 28 4 7 1 . . . 10 18 9 5 3 13 1 8 38 1 9 3 1 . Failed 152 | . 2 13 3 15 . . . . 11 13 8 13 3 . 4 8 39 3 11 2 3 1 Catastrophic 33 | . . 1 . 1 . . . . 1 2 . 2 2 . 3 4 7 1 4 2 3 . Database Lockouts 6 | . . 1 . 1 . . . . 1 1 . . . . . 1 1 . . . . . Manual 63 | . 7 16 4 8 . . . . 1 2 . . 1 . 1 . 12 . 9 2 . . Terminals 174 | . 9 27 5 11 . . . . 4 13 13 18 6 . 3 . 44 4 11 2 4 . Fabricators 13 | . . . . . . . . . 4 2 2 . . . . 4 . . 1 . . . Repair Stations 53 | . . 4 2 5 . . . . 6 2 2 . . . . 3 20 . 8 . . 1 Recycling Units 3 | . . . . . . . . . 3 . . . . . . . . . . . . . Scanalyzers 61 | . . 11 . 4 . . . . 5 15 . . . . . 10 13 . . 3 . . Garrison Access 6 | . . . . 3 . . . . . . . . . . 2 . 1 . . . . . Terminal Hacks 77 | . 5 10 1 1 1 . . . 1 6 7 5 3 13 1 . 16 1 4 1 1 . Record 29 | . . . . . . . . . . 1 3 . 3 13 1 . 8 . . . . . Robot Analysis 2 | . 2 . . . . . . . . . . . . . . . . . . . . . Prototype ID Bank 5 | . . 1 1 . . . . . 1 . 1 . . . . . . . 1 . . . Open Door 8 | . . . . . 1 . . . . . 1 5 . . . . . . . . 1 . Branch Access Points 2 | . . . . . . . . . . . . . . . . . 1 1 . . . . Emergency Access Points 1 | . . 1 . . . . . . . . . . . . . . . . . . . . Terminal Index 1 | . . . . 1 . . . . . . . . . . . . . . . . . . Alert Level 4 | . . . . . . . . . . . 1 . . . . . 2 . 1 . . . Unreport Threat 9 | . 2 . . . . . . . . . . . . . . . 5 . 1 1 . . Locate Traps 2 | . . . . . . . . . . . 1 . . . . . . . 1 . . . Dispatch Records 1 | . . . . . . . . . . 1 . . . . . . . . . . . . Maintenance Status 1 | . . 1 . . . . . . . . . . . . . . . . . . . . Patrol Status 1 | . . . . . . . . . . 1 . . . . . . . . . . . . Transport Status 1 | . . 1 . . . . . . . . . . . . . . . . . . . . Investigation Status 1 | . . 1 . . . . . . . . . . . . . . . . . . . . Extermination Status 1 | . . . . . . . . . . 1 . . . . . . . . . . . . Recall Extermination 1 | . . . . . . . . . . 1 . . . . . . . . . . . . Hauler Manifests 1 | . . . . . . . . . . 1 . . . . . . . . . . . . Registered Components 1 | . . 1 . . . . . . . . . . . . . . . . . . . . Zone Layout 5 | . 1 4 . . . . . . . . . . . . . . . . . . . . Fabricator Hacks 7 | . . . . . . . . . 2 1 . . . . . 3 . . 1 . . . Network Status 2 | . . . . . . . . . . . . . . . . 1 . . 1 . . . Load Schematic 2 | . . . . . . . . . 1 . . . . . . 1 . . . . . . Build 3 | . . . . . . . . . 1 1 . . . . . 1 . . . . . . Repair Station Hacks 29 | . . 4 2 2 . . . . 4 . 2 . . . . . 11 . 4 . . . Scan Component 15 | . . 2 1 1 . . . . 2 . 1 . . . . . 6 . 2 . . . Repair 14 | . . 2 1 1 . . . . 2 . 1 . . . . . 5 . 2 . . . Recycling Unit Hacks 1 | . . . . . . . . . 1 . . . . . . . . . . . . . Retrieve Components 1 | . . . . . . . . . 1 . . . . . . . . . . . . . Scanalyzer 41 | . . 10 . 3 . . . . 2 10 . . . . . 5 9 . . 2 . . Insert Component 13 | . . 4 . . . . . . . 6 . . . . . . 3 . . . . . Analyze 9 | . . 4 . . . . . . . 3 . . . . . . 2 . . . . . Retrieve Study 19 | . . 2 . 3 . . . . 2 1 . . . . . 5 4 . . 2 . . Garrison Access Hacks 1 | . . . . . . . . . . . . . . . . . 1 . . . . . Seal Access 1 | . . . . . . . . . . . . . . . . . 1 . . . . . Unauthorized Hacks 10 | . 2 4 1 1 . . . . . 1 . . . . . . 1 . . . . . Terminals 9 | . 2 4 1 1 . . . . . . . . . . . . 1 . . . . . Botnet 9 | . 2 4 1 1 . . . . . . . . . . . . 1 . . . . . Fabricators . | . . . . . . . . . . . . . . . . . . . . . . . Repair Stations 1 | . . . . . . . . . . 1 . . . . . . . . . . . . Patch 1 | . . . . . . . . . . 1 . . . . . . . . . . . . Recycling Units . | . . . . . . . . . . . . . . . . . . . . . . . Scanalyzers . | . . . . . . . . . . . . . . . . . . . . . . . Garrison Access . | . . . . . . . . . . . . . . . . . . . . . . . Data Cores Recovered 5 | . . . . 1 . . . . . . . . . . . . 1 . 1 . 1 1 Used . | . . . . . . . . . . . . . . . . . . . . . . . Hacking Detections 76 | . 2 10 2 8 . . . . 7 6 6 4 2 . 3 4 12 1 4 2 2 1 Full Trace Events 15 | . . 2 . 2 . . . . 1 1 1 2 2 . . 1 2 . . . 1 . Feedback Events 1 | . . . . . . . . . . . . . . . . . 1 . . . . . Corruption 1 | . . . . . . . . . . . . . . . . . 1 . . . . . Feedback Blocked . | . . . . . . . . . . . . . . . . . . . . . . . Robot Schematics Acquired 11 | . . . . . . . 2 . . . . . . . . . . . 3 6 . . Robots Built . | . . . . . . . . . . . . . . . . . . . . . . . Authchips . | . . . . . . . . . . . . . . . . . . . . . . . Time . | . . . . . . . . . . . . . . . . . . . . . . . Total Robot Build Rating . | . . . . . . . . . . . . . . . . . . . . . . . Part Schematics Acquired 36 | . . 3 . . . . 13 . . 3 . . . . . . 2 . 6 9 . . Parts Built 4 | . . . . . . . . . . 2 . . . . . 2 . . . . . . Authchips . | . . . . . . . . . . . . . . . . . . . . . . . Time 248 | . . . . . . . . . 47 106 . . . . . 95 . . . . . . Total Part Build Rating 22 | . . . . . . . . . . 12 . . . . . 10 . . . . . . Part Studies Acquired 19 | . . 2 . 3 . . . . 2 1 . . . . . 5 4 . . 2 . . Parts Repaired 14 | . . 2 1 1 . . . . 2 . 1 . . . . . 5 . 2 . . . Time 637 | . . 83 38 44 . . . . 100 . 38 . . . . . 152 . 182 . . . Parts Recycled . | . . . . . . . . . . . . . . . . . . . . . . . Recycled Matter . | . . . . . . . . . . . . . . . . . . . . . . . Retrieved Matter . | . . . . . . . . . . . . . . . . . . . . . . . Retrieved Components 2 | . . . . . . . . . 2 . . . . . . . . . . . . . Parts Scanalyzed 9 | . . 4 . . . . . . . 3 . . . . . . 2 . . . . . Part Schematics Acquired 8 | . . 3 . . . . . . . 3 . . . . . . 2 . . . . . Parts Damaged 4 | . . . . . . . . . . 3 . . . . . . 1 . . . . . Bothacking | -11 -10 -9 -8 -7 -7 -7 -7 -6 -6 -5 -4 -4 -4 -4 -4 -3 -3 -2 -2 -2 -1 -1 ------------ Run | Yrd Mat Mat Mat Fac Low Low Zio Pro Fac Fac Fac Ext Cet Arc Hub Res Qua Res Tes Sec Acc Com Used RIF Installer . | . . . . . . . . . . . . . . . . . . . . . . . Robots Hacked . | . . . . . . . . . . . . . . . . . . . . . . . Non-combat . | . . . . . . . . . . . . . . . . . . . . . . . Combat . | . . . . . . . . . . . . . . . . . . . . . . . Robot Hacks Applied . | . . . . . . . . . . . . . . . . . . . . . . . Relay Couplers Released 14 | . . . . 7 . . . . . . . . . . 2 1 . . 4 . . . Machine Destruction 6 | . . . . 3 . . . . . . . . . . 2 1 . . . . . . Programmers 8 | . . . . 4 . . . . . . . . . . . . . . 4 . . . Fabnet Peak Effective % . | . . . . . . . . . . . . . . . . . . . . . . . Robots Rewired 12 | . . . . . . . . . . . . 12 . . . . . . . . . . Allies Hacked . | . . . . . . . . . . . . . . . . . . . . . . . Hacks Repelled . | . . . . . . . . . . . . . . . . . . . . . . . Allies | -11 -10 -9 -8 -7 -7 -7 -7 -6 -6 -5 -4 -4 -4 -4 -4 -3 -3 -2 -2 -2 -1 -1 -------- Run | Yrd Mat Mat Mat Fac Low Low Zio Pro Fac Fac Fac Ext Cet Arc Hub Res Qua Res Tes Sec Acc Com Total Allies 23 | . . . . . . . . . . . . 18 5 . . . . . . . . . Largest Group 10 | . . . . . . . . . . . . 10 7 6 5 . . . . . . . Highest-Rated Group 685 | . . . . . . . . . . . . 532 685 639 480 . . . . . . . Highest-Rated Ally 159 | . . . . . . . . . . . . 159 159 159 96 . . . . . . . Total Orders . | . . . . . . . . . . . . . . . . . . . . . . . Ally Attacks 245 | . . . . . . . . . . . . 61 92 25 67 . . . . . . . Total Damage 7768 | . . . . . . . . . . . . 1850 2833 1067 2018 . . . . . . . Kills 44 | . . . . . . . . . . . . 14 16 4 10 . . . . . . . Allies Corrupted 1 | . . . . . . . . . . . . . . . 1 . . . . . . . Allies Melted 1 | . . . . . . . . . 1 . . . . . . . . . . . . . Intel | -11 -10 -9 -8 -7 -7 -7 -7 -6 -6 -5 -4 -4 -4 -4 -4 -3 -3 -2 -2 -2 -1 -1 ------- Run | Yrd Mat Mat Mat Fac Low Low Zio Pro Fac Fac Fac Ext Cet Arc Hub Res Qua Res Tes Sec Acc Com Active Infowar (turns) 16039 | . . . . 1247 874 388 940 1 980 549 526 1461 171 176 396 746 2545 728 2476 1016 274 545 Optics 8256 | . . . . . . . . . 789 . . . . . . . 2428 728 2476 1016 274 545 Sensors 2139 | . . . . 1025 . . . . . . 408 653 . . 53 . . . . . . . Terrain 7932 | . . . . 222 874 388 821 1 225 549 526 929 171 176 396 746 588 . 1320 . . . Decoding 649 | . . . . . . . 468 . 181 . . . . . . . . . . . . . Robot Analysis Total 2 | . 2 . . . . . . . . . . . . . . . . . . . . . Derelict Logs Recovered 5 | . . . . . 2 1 1 1 . . . . . . . . . . . . . . Drone Launches 1 | . . . . . . . . . 1 . . . . . . . . . . . . . Drone Recoveries . | . . . . . . . . . . . . . . . . . . . . . . . Decoded 0b10 Intel 12 | . . . . . . . . . 12 . . . . . . . . . . . . . Items 12 | . . . . . . . . . 12 . . . . . . . . . . . . . Exploration | -11 -10 -9 -8 -7 -7 -7 -7 -6 -6 -5 -4 -4 -4 -4 -4 -3 -3 -2 -2 -2 -1 -1 ------------- Run | Yrd Mat Mat Mat Fac Low Low Zio Pro Fac Fac Fac Ext Cet Arc Hub Res Qua Res Tes Sec Acc Com Turns Passed 26608 | 8 404 1276 939 1843 874 1306 1687 1223 1999 1556 526 1645 948 176 411 2203 2545 728 2476 1016 274 545 Spaces Moved 13236 | 7 242 739 377 796 457 601 1039 395 1035 718 317 786 331 73 176 1040 1200 368 1269 536 296 438 Core 4 | . . . . . . . . 4 . . . . . . . . . . . . . . Treads 4448 | . . . 354 458 . . . . . . . . . . . 925 1200 368 964 179 . . Legs 5547 | 7 91 . . . 441 601 131 370 330 718 317 786 331 73 176 115 . . 305 264 122 369 Wheels 2901 | . 151 739 23 338 16 . 908 21 705 . . . . . . . . . . . . . Hover . | . . . . . . . . . . . . . . . . . . . . . . . Flight . | . . . . . . . . . . . . . . . . . . . . . . . Fastest Speed 98 | 120 115 105 120 98 113 190 145 145 100 121 124 120 120 190 120 156 152 155 113 103 106 108 Average Speed 148 | 120 116 118 144 145 154 190 150 260 130 138 129 125 182 190 141 161 154 155 148 126 107 108 Slowest Speed 900 | 120 120 120 150 224 190 190 190 900 330 192 190 260 190 190 190 320 200 157 190 160 108 109 Overloaded Moves . | . . . . . . . . . . . . . . . . . . . . . . . Propulsion Burnouts . | . . . . . . . . . . . . . . . . . . . . . . . Robots Hopped 1 | . . . . . . . . . . . . . . . 1 . . . . . . . Potential Cave-ins 9 | . . . . . . . . . . . . . . . 4 . . . . . 5 . Cave-ins Triggered . | . . . . . . . . . . . . . . . . . . . . . . . Microwarps 30 | . . . . . . . . . . . . . . . . . . . . 11 12 7 Exploration Rate (%) 45 | 2 46 68 41 22 66 64 85 68 26 19 9 73 84 77 28 31 94 8 74 32 10 23 Regions Visited 22 Branch Regions 12 Pre-discovered Areas 2 | . . . . . . 1 . 1 . . . . . . . . . . . . . . Known Exits Taken 4 | . . . . . . . 1 1 1 . . . . . . . . 1 . . . . Unknown Exits Taken 18 | 1 1 1 1 1 1 1 . . . 1 1 1 1 1 1 1 1 . 1 1 1 . Scrap Searched 14 | . . . . . 3 3 4 4 . . . . . . . . . . . . . . Spaces Dug 50 | . . . . 1 . . . . 3 6 5 . . . . . 10 . . . 8 17 Terrain Destroyed 1095 | . 6 14 4 45 2 . . 42 161 19 5 11 3 . 354 15 21 21 183 83 11 95 Melee 15 | . . . . 1 . . . . 1 6 5 . . . . . 2 . . . . . Projectile 189 | . . . . 4 2 . . 13 13 13 . 1 3 . 17 11 18 21 17 22 8 26 AOE 850 | . 6 14 4 40 . . . 29 147 . . . . . 335 4 . . 154 51 . 66 Terrain Rammed . | . . . . . . . . . . . . . . . . . . . . . . . Walls Destroyed . | . . . . . . . . . . . . . . . . . . . . . . . Machines Disabled . | . . . . . . . . . . . . . . . . . . . . . . . Actions | -11 -10 -9 -8 -7 -7 -7 -7 -6 -6 -5 -4 -4 -4 -4 -4 -3 -3 -2 -2 -2 -1 -1 --------- Run | Yrd Mat Mat Mat Fac Low Low Zio Pro Fac Fac Fac Ext Cet Arc Hub Res Qua Res Tes Sec Acc Com Total 18305 | 6 310 1027 596 1314 545 755 1165 486 1495 1174 423 1247 636 102 274 1447 1743 481 1763 673 200 443 Wait 2541 | . 13 137 80 347 20 143 85 3 178 293 79 52 235 22 11 189 322 37 267 23 2 3 Move 12904 | 6 241 738 376 795 456 600 1038 394 1034 717 316 785 329 72 173 1039 1199 367 1268 453 133 375 Hop 1 | . . . . . . . . . . . . . . . 1 . . . . . . . Pick Up 399 | . 7 38 17 19 11 2 19 11 53 36 7 30 12 . 11 34 25 17 24 23 . 3 Fast Attach 67 | . 1 3 3 2 . . . . 5 . 1 5 1 . 1 8 8 . 25 4 . . Attach 238 | . 1 7 7 13 8 2 11 14 40 18 3 23 . . 11 24 6 12 15 22 . 1 Detach 28 | . . . . 1 . . . 2 2 6 1 4 . . 1 4 . 1 4 2 . . Swap 246 | . 8 15 11 17 6 2 1 3 33 26 6 24 13 . 9 20 22 6 8 10 1 5 Drop 304 | . 6 25 12 20 3 1 11 3 31 17 5 21 10 . 9 29 32 7 44 16 . 2 Fire 1297 | . 33 64 87 87 41 5 . 56 103 49 . 138 26 8 46 94 115 34 107 119 31 54 Melee 47 | . . . . 3 . . . . 16 7 5 11 . . . . 5 . . . . . Ram 1 | . . . . 1 . . . . . . . . . . . . . . . . . . Kick 7 | . . . . . . . . . . 5 . . . . 1 . . . . 1 . . Crush 6 | . . . 3 1 . . . . . . . . . . . 1 . . 1 . . . Escape Stasis 14 | . . . . 8 . . . . . . . 1 . . . 5 . . . . . . Rewire 153 | . . . . . . . . . . . . 153 . . . . . . . . . . Trap . | . . . . . . . . . . . . . . . . . . . . . . . Miscellaneous 52 | . . . . . . . . . . . . . 10 . . . 9 . . . 33 . Route ------- -11/Scrapyard -10/Materials -9/Materials (discovered 4 exits: *Mat x3 / [*Sto]) -8/Materials -7/Factory -7/Lower Caves -7/Lower Caves (discovered 2 exits: *Fac / *Zio) -7/Zion (discovered 2 exits: [Dee] / *Pro) -6/Proximity Caves -6/Factory (discovered 3 exits: *Fac x2 / [*Low]) -5/Factory -4/Factory (discovered 2 exits: *Res / *Ext) -4/Extension (discovered 3 exits: *Res x2 / *Cet) -4/Cetus (discovered 2 exits: *Res / *Arc) -4/Archives (discovered 3 exits: *Res / *Hub x2) -4/Hub_04(d) (discovered 2 exits: *Res x2) -3/Research -3/Quarantine -2/Research (discovered 2 exits: *Tes x2) -2/Testing (discovered 3 exits: *Acc / *Sec / [*Frg]) -2/Section 7 -1/Access -1/Command Tau Ceti IV Orbit History --------- Turn | Location | Event 1 | -11/Scrapyard | Discovered new exit (range 3) 9 | -11/Scrapyard | Entered Materials 302 | -10/Materials | Build established: Mutant 409 | -10/Materials | Discovered new exit (range 3) 413 | -10/Materials | Entered another Materials area 413 | -9/Materials | Evolved 2 slots: Utility x2 532 | -9/Materials | Discovered new exit (range 12) 705 | -9/Materials | Discovered new exit (range 16) 1106 | -9/Materials | Discovered new exit (range 16) 1131 | -9/Materials | Central database locked down 1322 | -9/Materials | Repaired Imp. EM Shotgun 1358 | -9/Materials | Repaired Arm. Wheel 1575 | -9/Materials | Discovered new exit (range 12) 1689 | -9/Materials | Entered another Materials area 1689 | -8/Materials | Evolved 2 slots: Propulsion x2 2422 | -8/Materials | Repaired Adv. Treads 2598 | -8/Materials | Discovered new exit (range 8) 2628 | -8/Materials | Entered Factory 2628 | -7/Factory | Evolved 2 slots: Utility x2 3037 | -7/Factory | Central database locked down 3385 | -7/Factory | Garrison activated, responded to threat 3856 | -7/Factory | Destroyed 9 combat bots 3919 | -7/Factory | Lost 4 parts (3n1w) 4422 | -7/Factory | Repaired Gauss Rifle+ 4453 | -7/Factory | Discovered new exit (range 16) 4471 | -7/Factory | Entered Lower Caves 4545 | -7/Lower Caves | Lost 4 parts (3n1u) 4574 | -7/Lower Caves | Learned Factory non-interactive machine intel 4808 | -7/Lower Caves | Learned Factory security intel 4816 | -7/Lower Caves | Build established: Scavenger-Mutant 4951 | -7/Lower Caves | Lost 3 parts (3n) 5202 | -7/Lower Caves | Build established: Mutant 5312 | -7/Lower Caves | Discovered new exit (range 8) 5345 | -7/Lower Caves | Entered another Lower Caves area 5381 | -7/Lower Caves | Discovered new exit (range 7) 5878 | -7/Lower Caves | Encountered a Warlord checkpoint 6207 | -7/Lower Caves | Discovered new exit (range 8) 6651 | -7/Lower Caves | Entered Zion 6754 | -7/Zion | Given the Hacking Drone Bay 6754 | -7/Zion | Found Prototype Device 6930 | -7/Zion | Identified exit to Proximity Caves 7379 | -7/Zion | Found Prototype Processor 7380 | -7/Zion | Identified Exp. Melee Analysis Suite 7386 | -7/Zion | Found Prototype Processor 7387 | -7/Zion | Identified Exp. Targeting Computer 7391 | -7/Zion | Found Prototype Processor 7394 | -7/Zion | Found Prototype Processor 7395 | -7/Zion | Identified Exp. Terrain Scan Processor 7945 | -7/Zion | Found CR-A16's Pointy Stick 7998 | -7/Zion | Discovered new exit (range 14) 8071 | -7/Zion | Received a visual enhancement algorithm 8181 | -7/Zion | Build established: Derelict-Mutant 8338 | -7/Zion | Entered Proximity Caves 8340 | -6/Proximity Caves | Spotter reported a threat 8341 | -6/Proximity Caves | Spotter reported a threat 8394 | -6/Proximity Caves | Spotter reported a threat 8420 | -6/Proximity Caves | Attracted the attention of an 0b10 outpost 8450 | -6/Proximity Caves | Destroyed 7 combat bots 8509 | -6/Proximity Caves | Core integrity fell below 50% 8533 | -6/Proximity Caves | Spotter reported a threat 8586 | -6/Proximity Caves | Spotter reported a threat 8602 | -6/Proximity Caves | Identified Exp. Signal Interpreter 8647 | -6/Proximity Caves | Build established: Mutant 8647 | -6/Proximity Caves | Attracted the attention of an 0b10 checkpoint 8670 | -6/Proximity Caves | Spotter reported a threat 8942 | -6/Proximity Caves | Spotter reported a threat 8955 | -6/Proximity Caves | Spotted B-75 Beast 8988 | -6/Proximity Caves | Destroyed B-75 Beast 9063 | -6/Proximity Caves | Spotter reported a threat 9235 | -6/Proximity Caves | Learned location of Extension (-4) 9269 | -6/Proximity Caves | Spotter reported a threat 9515 | -6/Proximity Caves | Discovered new exit (range 15) 9518 | -6/Proximity Caves | Spotter reported a threat 9558 | -6/Proximity Caves | Identified exit to Factory 9561 | -6/Proximity Caves | Entered Factory 9561 | -6/Factory | Evolved 2 slots: Power x1, Propulsion x1 9563 | -6/Factory | Loaded intel: 216 non-interactive machine locations 9684 | -6/Factory | Discovered new exit (range 9) 9892 | -6/Factory | Identified exit to Factory 9911 | -6/Factory | Search patrols dispatched 10261 | -6/Factory | Search patrols dispatched 10275 | -6/Factory | Lost 3 parts (2p1n) 10323 | -6/Factory | Discovered new exit (range 6) 10348 | -6/Factory | Central database locked down 10441 | -6/Factory | Identified Hacking Drone Bay 10474 | -6/Factory | Found Prototype Launcher 10475 | -6/Factory | Identified Scatter Rocket Array 10611 | -6/Factory | Search patrols dispatched 10692 | -6/Factory | Spotted B-75 Beast 10783 | -6/Factory | Destroyed B-75 Beast 10795 | -6/Factory | Core integrity fell below 50% 10804 | -6/Factory | Destroyed 9 combat bots 10838 | -6/Factory | Lost 13 parts (2p4n2u5w) 10886 | -6/Factory | Garrison activated, responded to threat 11054 | -6/Factory | Garrison activated, responded to threat 11292 | -6/Factory | Repaired Arm. Leg 11311 | -6/Factory | First assault squad dispatched 11352 | -6/Factory | Repaired Arm. Leg 11414 | -6/Factory | Core integrity fell below 20% 11500 | -6/Factory | Discovered exit to Factory (range 9) 11560 | -6/Factory | Entered another Factory area 11560 | -5/Factory | Evolved 2 slots: Propulsion x1, Utility x1 11568 | -5/Factory | Lost 3 parts (1p1n1w) 11728 | -5/Factory | Allied Derelicts emerged from ambush trap array 12047 | -5/Factory | Lost 6 parts (2p2n2u) 12301 | -5/Factory | Build established: Scavenger-Mutant 12301 | -5/Factory | Found Scatter Rocket Array 12409 | -5/Factory | Central database locked down 12534 | -5/Factory | Cargo convoy interrupted 12558 | -5/Factory | Fabricated Adv. System Restoration Module (x2) 12936 | -5/Factory | Discovered new exit (range 20) 13116 | -5/Factory | Entered another Factory area 13116 | -4/Factory | Evolved 2 slots: Utility x2 13177 | -4/Factory | Build established: Mutant 13512 | -4/Factory | Repaired Titanium Leg 13590 | -4/Factory | Discovered new exit (range 12) 13594 | -4/Factory | Discovered new exit (range 22) 13625 | -4/Factory | Build established: Assassin 13642 | -4/Factory | Entered Extension 13650 | -4/Extension | Disrupted transfer network 13718 | -4/Extension | Rescued a captive Derelict 13719 | -4/Extension | Rescued a captive Derelict 13836 | -4/Extension | Rescued a captive Derelict 14062 | -4/Extension | Build established: Scavenger-Mutant 14095 | -4/Extension | Rescued a captive Derelict 14145 | -4/Extension | Spotted B-86 Titan 14221 | -4/Extension | Lost 5 allies 14236 | -4/Extension | Destroyed B-86 Titan 14255 | -4/Extension | Spotted B-86 Titan 14259 | -4/Extension | Lost 7 parts (1p2n2u2w) 14374 | -4/Extension | Destroyed B-86 Titan 14413 | -4/Extension | Discovered new exit (range 16) 14508 | -4/Extension | Lost 3 parts (2n1u) 14601 | -4/Extension | Lost 3 parts (2u1w) 14709 | -4/Extension | Rescued a captive Derelict 14951 | -4/Extension | Rescued A7 15125 | -4/Extension | Discovered new exit (range 20) 15142 | -4/Extension | First assault squad dispatched 15211 | -4/Extension | Lost 6 allies 15255 | -4/Extension | Discovered new exit (range 10) 15287 | -4/Extension | Entered Cetus 15287 | -4/Cetus | Accompanied by 4 allies (A7) 15292 | -4/Cetus | Acquired a Cetus Manufacturing Module code from A7 15304 | -4/Cetus | Spotted Cetus Guard 15304 | -4/Cetus | Spotted Cetus Guard 15305 | -4/Cetus | Spotted Cetus Guard 15310 | -4/Cetus | Spotted Cetus Guard 15311 | -4/Cetus | Destroyed Cetus Guard 15313 | -4/Cetus | Destroyed Cetus Guard 15325 | -4/Cetus | Allies destroyed Cetus Guard 15331 | -4/Cetus | Destroyed Cetus Guard 15585 | -4/Cetus | Escorted A7 to Cetus Mainframe 15676 | -4/Cetus | Started Cetus Manufacturing Module 15701 | -4/Cetus | Manufactured an Enhanced Grunt 15726 | -4/Cetus | Manufactured an Enhanced Grunt 15751 | -4/Cetus | Manufactured an Enhanced Grunt 15776 | -4/Cetus | Manufactured an Enhanced Grunt 15801 | -4/Cetus | Manufactured an Enhanced Grunt 15952 | -4/Cetus | Discovered new exit (range 16) 15991 | -4/Cetus | Spotted Cetus Guard 15991 | -4/Cetus | Spotted Cetus Guard 15993 | -4/Cetus | Destroyed Cetus Guard 15994 | -4/Cetus | Spotted Cetus Guard 15995 | -4/Cetus | Spotted Cetus Guard 15998 | -4/Cetus | Destroyed Cetus Guard 16007 | -4/Cetus | Allies destroyed Cetus Guard 16010 | -4/Cetus | Allies destroyed Cetus Guard 16016 | -4/Cetus | Discovered new exit (range 16) 16026 | -4/Cetus | Met Revision 17 16037 | -4/Cetus | Security sweep announced 16235 | -4/Cetus | Entered Archives 16235 | -4/Archives | Accompanied by 6 allies (A7) 16240 | -4/Archives | Received a hacking code to weaken MAIN.C 16249 | -4/Archives | Discovered new exit (range 22) 16255 | -4/Archives | Discovered new exit (range 24) 16283 | -4/Archives | Unable to access archive contents 16288 | -4/Archives | Discovered new exit (range 24) 16302 | -4/Archives | Unable to access archive contents 16321 | -4/Archives | Unable to access archive contents 16411 | -4/Archives | Entered Hub_04(d) 16411 | -4/Hub_04(d) | Accompanied by 5 allies 16492 | -4/Hub_04(d) | Discovered new exit (range 21) 16583 | -4/Hub_04(d) | Discovered new exit (range 20) 16665 | -4/Hub_04(d) | Lost 3 allies 16773 | -4/Hub_04(d) | Network Hub disabled 16789 | -4/Hub_04(d) | Network Hub disabled 16792 | -4/Hub_04(d) | Spotted Lightning 16796 | -4/Hub_04(d) | Spotted Lightning 16822 | -4/Hub_04(d) | Entered Research 16822 | -3/Research | Evolved 2 slots: Propulsion x1, Utility x1 16853 | -3/Research | Lost 3 parts (2n1u) 17022 | -3/Research | Revision forces began assault on 0b10 17048 | -3/Research | Met up with Revision 17++ 17522 | -3/Research | Research terminal network offline 17628 | -3/Research | Fabricated Adv. Terrain Scanner (x2) 17963 | -3/Research | Lost 6 allies 18205 | -3/Research | Spotted Striker 18208 | -3/Research | Spotted Striker 18209 | -3/Research | Destroyed Striker 18220 | -3/Research | Destroyed Striker 18240 | -3/Research | Spotted B-86 Titan 18269 | -3/Research | Destroyed B-86 Titan 18339 | -3/Research | Found Prototype Device 18339 | -3/Research | Identified Exp. Thermal Shield 18363 | -3/Research | Build established: Mutant 18478 | -3/Research | Spotted Striker 18481 | -3/Research | Spotted Striker 18490 | -3/Research | Destroyed Striker 18593 | -3/Research | Found Prototype Launcher 18594 | -3/Research | Identified Tactical Quantum Warhead 18598 | -3/Research | Spotted Striker 18606 | -3/Research | Destroyed Striker 18617 | -3/Research | Central database locked down 18633 | -3/Research | Lost 4 allies 18663 | -3/Research | Spotted Striker 18668 | -3/Research | Destroyed Striker 18709 | -3/Research | Destroyed 9 combat bots 18901 | -3/Research | Found Prototype Processor 18901 | -3/Research | Identified Exp. Target Analyzer 18994 | -3/Research | Discovered new exit (range 15) 19000 | -3/Research | Spotted Striker 19004 | -3/Research | Spotted Striker 19025 | -3/Research | Entered Quarantine 19305 | -3/Quarantine | Repaired Hvy. Treads+ 19337 | -3/Quarantine | Repaired Hyp. Mass Driver+ 19435 | -3/Quarantine | Build established: Scavenger-Mutant 19775 | -3/Quarantine | First assault squad dispatched 19872 | -3/Quarantine | Found Exp. Thermal Shield 19952 | -3/Quarantine | Found Alien Artifact 20049 | -3/Quarantine | Central database locked down 20478 | -3/Quarantine | Found Sigix Corpse 20506 | -3/Quarantine | Found Sigix Corpse 21127 | -3/Quarantine | Discovered new exit (range 9) 21174 | -3/Quarantine | Repaired Hyp. Mass Driver+ 21212 | -3/Quarantine | Lost 3 parts (1p1n1u) 21228 | -3/Quarantine | Repaired Adv. Heavy Treads 21258 | -3/Quarantine | Repaired Hvy. Treads+ 21420 | -3/Quarantine | Met incapacitated Sigix Warrior 21420 | -3/Quarantine | Lockdown squad dispatched 21433 | -3/Quarantine | Acquired the access code to the Sigix quarantine chamber 21436 | -3/Quarantine | Unlocked Sigix quarantine chamber 21442 | -3/Quarantine | Found Sigix Containment Pod 21558 | -3/Quarantine | Build established: Mutant 21570 | -3/Quarantine | Entered Research 21570 | -2/Research | Evolved 2 slots: Propulsion x1, Utility x1 22034 | -2/Research | Discovered new exit (range 9) 22047 | -2/Research | Identified exit to Testing 22140 | -2/Research | Build established: Scavenger-Mutant 22298 | -2/Research | Entered Testing 22344 | -2/Testing | Found Exp. Thermal Shield 22463 | -2/Testing | Repaired Centrium Medium Armor Plating 22538 | -2/Testing | Repaired Adv. Phase Shifter 22614 | -2/Testing | Found Prototype Ballistic Gun 22615 | -2/Testing | Identified Hyp. Multirail 23189 | -2/Testing | Discovered new exit (range 7) 23350 | -2/Testing | Found Portable AFG 23548 | -2/Testing | First assault squad dispatched 23692 | -2/Testing | Found Prototype Device 23692 | -2/Testing | Identified Exp. Weapon Cycler 23719 | -2/Testing | Found Prototype Special Weapon 23719 | -2/Testing | Identified Gui. Remote Datajack 23777 | -2/Testing | Garrison activated, responded to threat 24264 | -2/Testing | Found Prototype Processor 24265 | -2/Testing | Identified Exp. Core Analyzer 24679 | -2/Testing | Spotted Fortress 24764 | -2/Testing | Discovered new exit (range 6) 24764 | -2/Testing | Discovered new exit (range 7) 24774 | -2/Testing | Entered Section 7 24786 | -2/Section 7 | Found Alien Artifact 24786 | -2/Section 7 | Identified Integrated Dissipator 24786 | -2/Section 7 | Installed Integrated Dissipator, increased core heat dissipation (+20) 24845 | -2/Section 7 | Spotted B-90 Cyclops 24870 | -2/Section 7 | Destroyed B-90 Cyclops 24938 | -2/Section 7 | Found Alien Artifact 24940 | -2/Section 7 | Identified Integrity Redistributor 24940 | -2/Section 7 | Used Integrity Redistributor, redistributed integrity from core (-180) 25070 | -2/Section 7 | Spotted S7 Guard 25084 | -2/Section 7 | Scanned by Researcher 25108 | -2/Section 7 | Destroyed S7 Guard 25133 | -2/Section 7 | Spotted S7 Guard 25190 | -2/Section 7 | Destroyed S7 Guard 25202 | -2/Section 7 | Lost 3 parts (1p2u) 25211 | -2/Section 7 | Destroyed 9 combat bots 25268 | -2/Section 7 | System corruption reached 10% 25274 | -2/Section 7 | First assault squad dispatched 25310 | -2/Section 7 | Found Integrity Redistributor 25310 | -2/Section 7 | Used Integrity Redistributor, redistributed integrity from core (-310) 25311 | -2/Section 7 | Core integrity fell below 50% 25352 | -2/Section 7 | Destroyed 8 combat bots 25413 | -2/Section 7 | Found Alien Artifact 25414 | -2/Section 7 | Identified Core Membrane 25414 | -2/Section 7 | Installed Core Membrane, gained immunity to corruption 25528 | -2/Section 7 | Found Alien Artifact 25529 | -2/Section 7 | Identified Integrated Mediator 25529 | -2/Section 7 | Installed Integrated Mediator, increased core attachment efficiency 25648 | -2/Section 7 | Discovered new exit (range 17) 25757 | -2/Section 7 | Found Alien Artifact 25770 | -2/Section 7 | Identified Microwarp Drive 25790 | -2/Section 7 | Entered Access 25790 | -1/Access | Evolved 2 slots: Utility x2 26056 | -1/Access | Discovered new exit (range 7) 26064 | -1/Access | Entered Command 26124 | -1/Command | Phase Generator disabled 26564 | -1/Command | First assault squad dispatched 26604 | -1/Command | Spotted B-99 Colossus 26607 | -1/Command | Spotted B-99 Colossus 26607 | -1/Command | Spotted Alpha 7 26607 | -1/Command | Spotted Striker 26607 | -1/Command | Spotted Executioner 26607 | -1/Command | Spotted Executioner 26607 | -1/Command | Spotted Alpha 7 26607 | -1/Command | Spotted Striker 26607 | -1/Command | Spotted Executioner 26607 | -1/Command | Spotted Executioner 26607 | -1/Command | Spotted B-99 Colossus 26608 | -1/Command | Discovered new exit (range 5) 26609 | *** | Destroyed 0b10! Last Messages --------------- 26605_ Microwarped (distance 4). 26606_ Microwarped (distance 10). 26607_ Microwarped (distance 18). 26608_ Myomer Leg destroyed. 26608_ Biometal Leg+ destroyed. 26608_ Penetrated by Slug. 26608_ Slug penetrates Access Shell. 26608_ EXIT=FOUND 26608_ Slug penetrates Access Shell. 26608_ Penetrated by Slug. 26608_ Microwarped (distance 4). 26609_ Penetrated by Slug. 26609_ Slug penetrates Access Shell. 26609_ Penetrated by Slug. 26609_ Microwarp Drive destroyed. 26609_ Slug penetrates Executioner. 26609_ Slug penetrates Access Shell. [Achievement: Payload Armed] [Achievement: Winner's Signature] [Achievement: Victory By Combat] Map ----- +----------------------------------------------------+ | ?????????????????? " | | ??????????????????????# " | | ??????????????????????# # ! | | ??????????????????????# + | | ??????????????????????# ## ## | | ??????????????????????# ## ############## | | ??????????????????????# ##########????????????? | | ??????????????????????# #?????????????????????? | | ?????????????????????##++++##????????????????????? | | ?????????????????????# #????????????????????? | | ?????????????????????# #????????????????????? | | ????????????????????? ????????????????????? | | ?????????????????????#7 ##???????????????????? | | ????????????????????? 7 ????????????????????? | | ?????????????????????# K##???????????????????? | | ????????????????????? K ????????????????????? | | ????????????????????##E ##???????????????????? | | ????????????????????? E #???????????????????? | | ??????????????????####E E####?????????????????? | | ??????????????????#BB #?????????????????? | | ??????????????????#BB % #?????????????????? | | ??????????????????# % #?????????????????? | | ??????????????????# " " #?????????????????? | | ??????????????????# "?????????????????????? | | ??????????????????# " "" "?????????????????????? | | ??????????????????# " "@ "?????????????????????? | | ??????????????????# " "?????????????????????? | | ??????????????????# "" " ????????????????????? | | ??????????????????# ?? ??????????????????? | | ??????????????????# ? #?????????????????? | | ??????????????????# #?????????????????? | | ??????????????????##############?????????????????? | | ?????????????????????????????????????????????????? | | ?????????????????????????????????????????????????? | | ?????????????????????????????????????????????????? | | ?????????????????????????????????????????????????? | | ?????????????????????????????????????????????????? | | ?????????????????????????????????????????????????? | | | | | | | | | | | | | | | | | | | | | | | | | +----------------------------------------------------+ Best States ------------- Heat Dissipation 116 Energy Generation 59 Energy Capacity 600 Matter Stores 300 Matter Capacity 300 Sight Range 22 Robot Scan Range 15 Terrain Scan Range 24 Terrain Scan Density 1010 Power Amplification 40 Base Temperature (-) 200 EM Shielding 2 Armor Coverage 600 Resistance: KI 30 Resistance: TH 30 Resistance: EX 25 Resistance: EM 15 Core Shielding 20 Point Defense Rating 240 Weapon Cycling 30 Phase Shifting 15 Evasion (%) 82 Targeting Accuracy 28 Target Analysis 12 Core Analysis 9 Armor Integrity Analysis 30 Recoil Reduction 8 Matter Filtering 30 Particle Charging 25 Salvage Targeting 4 Offensive Hacking 22 Defensive Hacking 23 Item Schematics ----------------- Arm. Wheel | -9/Materials | Scanalyzed Adv. Targeting Computer | -9/Materials | Scanalyzed Hardlight Generator | -9/Materials | Scanalyzed Hyp. Gauss Rifle | -7/Zion | Archive Gravmag System | -7/Zion | Archive Shock Absorption System | -7/Zion | Archive Adv. Terrain Scanner | -7/Zion | Archive Lrn. Proton Cannon | -7/Zion | Archive Component Analysis Suite | -7/Zion | Archive Imp. Thermal Generator | -7/Zion | Archive Imp. Melee Analysis Suite | -7/Zion | Archive Hvy. Machine Gun | -7/Zion | Archive Remote Datajack | -7/Zion | Archive Med. Treads | -7/Zion | Archive Adv. Melee Analysis Suite | -7/Zion | Archive System Restoration Module | -7/Zion | Archive Adv. Plasma Cannon | -5/Factory | Scanalyzed Hvy. Flak Cannon | -5/Factory | Scanalyzed Imp. Target Analyzer | -5/Factory | Scanalyzed Hyp. Mass Driver | -3/Quarantine | Scanalyzed Adv. Particle Charger | -3/Quarantine | Scanalyzed Adv. Plasma Rifle | -2/Testing | Archive Cld. Gravmag System | -2/Testing | Archive Nanosword | -2/Testing | Archive Shock Maul | -2/Testing | Archive Diametric Drive | -2/Testing | Archive Stealth Drone Bay | -2/Testing | Archive Exp. System Shield | -2/Section 7 | Archive Com. Mass Driver | -2/Section 7 | Archive Exp. Reaction Control System | -2/Section 7 | Archive Cld. Linear Gravjet | -2/Section 7 | Archive Enh. Multireflex Exoskeleton | -2/Section 7 | Archive Exp. Thermal Defense Suite | -2/Section 7 | Archive Tiamat Missile Launcher | -2/Section 7 | Archive Adv. Dynamic Insulation System | -2/Section 7 | Archive Lrn. Phase Cannon | -2/Section 7 | Archive Robot Schematics ------------------ T-07 Excavator | -7/Zion | Archive S-27 Virus | -7/Zion | Archive G-73 Enforcer | -2/Testing | Archive A-02 Transporter | -2/Testing | Archive S-43 Plague | -2/Testing | Archive H-88 Terminator | -2/Section 7 | Archive A-15 Conveyor | -2/Section 7 | Archive R-10 Processor | -2/Section 7 | Archive R-06 Scavenger | -2/Section 7 | Archive A-27 Freighter | -2/Section 7 | Archive W-44 Eye | -2/Section 7 | Archive Fabricated ------------ Adv. System Restoration Module | x2 | -5/Factory | Preloaded Adv. Terrain Scanner | x2 | -3/Research Repaired ---------- Imp. EM Shotgun | 21% | -9/Materials Arm. Wheel | 71% | -9/Materials Adv. Treads | 13% | -8/Materials Gauss Rifle | 20% | -7/Factory Arm. Leg | 8% | -6/Factory Arm. Leg | 6% | -6/Factory Titanium Leg | 11% | -4/Factory Hvy. Treads | 22% | -3/Quarantine Hyp. Mass Driver | 25% | -3/Quarantine Hyp. Mass Driver | 6% | -3/Quarantine Adv. Heavy Treads | 10% | -3/Quarantine Hvy. Treads | 19% | -3/Quarantine Centrium Medium Armor Plating | 36% | -2/Testing Adv. Phase Shifter | 36% | -2/Testing Studied --------- Lgt. Cannon | -9/Materials | Hacked Ion Engine | -9/Materials | Hacked Adv. Treads | -7/Factory | Hacked Gauss Rifle | -7/Factory | Hacked Gauss Cannon | -7/Factory | Hacked Angular Momentum Engine | -6/Factory | Hacked Flak Gun | -6/Factory | Hacked Adv. Plasma Cannon | -5/Factory | Hacked Quantum Rifle | -3/Research | Hacked Hvy. Treads | -3/Research | Hacked Imp. Plasma Cutter | -3/Research | Hacked Hyp. Mass Driver | -3/Research | Hacked Neutrino Core | -3/Research | Hacked Lgt. Particle Reactor | -3/Quarantine | Hacked Biometal Medium Treads | -3/Quarantine | Hacked Mic. Antimatter Reactor | -3/Quarantine | Hacked Hvy. Shock Bomb Launcher | -3/Quarantine | Hacked Centrium Leg | -2/Section 7 | Hacked Biometal Leg | -2/Section 7 | Hacked Alien Tech Used ----------------- Integrated Dissipator Integrity Redistributor Core Membrane Integrated Mediator Microwarp Drive Achievements -------------- Batter Up Construction Begets Destruction DIY Cooler IP Theft Immobile And Lovin' It Main Advantage Metal Spider Payload Armed Suspicious Tune-up Victory By Combat Vwoop! Winner's Signature Challenges ------------ None Game ------ Seed CloakingPhaseRay Manual? 0 Play Time 04:23:33 Cumulative 144.3 hours Start 2025.12.23 @ 02:06:07 End 2025.12.27 @ 15:28:01 Sessions 3 Manual Loads 0 Difficulty Rogue Special Mode None Game No. 172 Rogue 157 Adventurer 15 Explorer 0 Win Type 3 Total 7 Types 3/0/2/1/0/0/1/0/0/0 Lore% 45 Gallery% 67 Achievement% 45 Wizard Run 0 Options --------- Layout 0 ASCII 0 Keyboard 0 Movement Mouse Keybinds 0 Fullscreen 2 Font 36/Smallcaps Map View 76x50 Zoom Use 0% Tactical HUD 1 Map Filters NONE Filters NONE Steam 1 RUN: 664db8e0-b333-43f4-b6a1-9d462a94b8b7